bitfinex/quotes_SOLUSD_20240725
["timestamp","ask_amount","ask_price","bid_price","bid_amount"]
[1721874401593,5.766,173.44,173.33,1.15352739]
[1721874401784,6.32264011,173.45,173.33,1.15352739]
[1721874402410,6.32214011,173.47,173.33,1.15352739]
[1721874402708,5.7653,173.45,173.33,1.15352739]
[1721874402922,0.55734011,173.44,173.3,21.2916]
[1721874403212,5.7667,173.41,173.3,22.44514733]
[1721874403389,5.7665,173.42,173.3,22.44514733]
[1721874403996,6.32334011,173.44,173.3,22.44514733]
[1721874404313,6.32334011,173.44,173.31,45.0]
[1721874404524,6.32334011,173.44,173.32,1.15349051]
[1721874404693,0.55734011,173.45,173.32,1.15344389]
[1721874404900,0.55734011,173.45,173.32,1.1532856]
[1721874405101,5.7657,173.44,173.32,1.1532856]
[1721874406229,25.92,173.46,173.31,46.15337833]
[1721874406230,0.55734011,173.43,173.31,46.15337833]
[1721874406395,5.7664,173.42,173.31,46.15337833]
[1721874406900,6.32334011,173.43,173.31,46.15337833]
[1721874407108,12.35712798,173.45,173.31,46.15337833]
[1721874407419,5.7657,173.44,173.31,46.15337833]
[1721874407713,6.32284011,173.45,173.31,66.15337833]
[1721874408125,0.55734011,173.45,173.31,46.15337833]
[1721874408509,5.766,173.43,173.31,46.15337833]
[1721874408693,0.55734011,173.45,173.31,66.15337833]
[1721874409324,0.55734011,173.45,173.31,46.15337833]
[1721874409997,5.7666,173.41,173.31,45.0]
[1721874410195,0.55734011,173.45,173.3,22.44508736]
[1721874410196,0.55734011,173.45,173.3,21.2916]
[1721874410395,5.7676,173.38,173.3,21.2916]
[1721874410615,0.55734011,173.42,173.3,21.2916]
[1721874410820,5.7681,173.37,173.3,21.2916]
[1721874411125,6.32494011,173.39,173.3,21.2916]
[1721874411491,0.55734011,173.39,173.3,15.213]
[1721874411810,0.55734011,173.39,173.26,16.1305]
[1721874411811,5.7701,173.31,173.26,16.1305]
[1721874412010,5.7701,173.31,173.23,6.2456]
[1721874412011,6.32784011,173.3,173.23,6.2456]
[1721874412212,0.55734011,173.29,173.23,6.2456]
[1721874412416,0.55734011,173.29,173.15,31.95850966]
[1721874412417,5.775,173.16,173.15,6.03850966]
[1721874412617,5.7765,173.12,173.01,1.15535248]
[1721874412805,5.7765,173.12,172.97,16.6309]
[1721874412806,25.92,173.09,172.97,17.63473832]
[1721874413126,17.34,173.15,172.93,1.15579293]
[1721874413127,25.92,173.06,172.93,1.15579293]
[1721874413295,25.92,173.06,172.93,21.47971858]
[1721874413497,25.92,173.09,172.95,20.0]
[1721874413694,25.92,173.09,172.96,1.15578869]
[1721874414303,17.34,173.13,172.96,1.15578869]
[1721874414514,5.7774,173.09,173.0,5.7801]
[1721874414900,5.7774,173.09,172.96,1.15578869]
[1721874414901,29.28,173.1,172.96,1.15578869]
[1721874415097,29.28,173.1,173.02,5.7795]
[1721874415317,5.7771,173.1,173.02,5.7795]
[1721874415626,5.7774,173.09,173.02,5.7795]
[1721874415920,0.57796787,173.03,173.02,5.7795]
[1721874416428,0.57796787,173.03,173.02,45.0]
[1721874419529,0.57796787,173.03,173.02,46.15558928]
[1721874419823,6.04175987,173.11,173.02,46.15558928]
[1721874420038,29.28,173.16,173.02,21.15558928]
[1721874420234,35.0551,173.16,173.03,45.0]
[1721874420526,5.7754,173.15,173.04,1.15533531]
[1721874420729,5.7757,173.14,173.03,46.15533613]
[1721874421795,35.61254011,173.16,173.03,46.15533613]
[1721874422033,29.28,173.16,173.03,46.15533613]
[1721874422196,6.03968263,173.19,173.04,16.403]
[1721874422525,5.7743,173.18,173.05,46.15505256]
[1721874422735,0.55734011,173.2,173.05,46.15505256]
[1721874422911,5.775,173.16,173.05,45.0]
[1721874423228,5.7758,173.14,173.05,45.0]
[1721874423412,6.33274011,173.15,173.05,45.0]
[1721874423611,5.7754,173.15,173.05,45.0]
[1721874423818,0.55734011,173.14,172.97,36.1749]
[1721874424018,0.55734011,173.14,172.97,37.3305721]
[1721874424229,5.7771,173.1,172.97,17.3305721]
[1721874424533,6.33474011,173.09,172.97,17.3305721]
[1721874424727,0.55734011,173.08,172.97,17.3305721]
[1721874425333,0.55734011,173.08,172.97,18.49215784]
[1721874425538,0.55734011,173.07,172.97,16.1749]
[1721874425728,5.7784,173.06,172.92,8.50712223]
[1721874425910,17.34,173.1,172.97,5.7811]
[1721874425911,0.55734011,173.05,172.97,5.7811]
[1721874426236,0.55734011,173.04,172.97,5.7811]
[1721874426441,6.33634011,173.04,172.97,5.7811]
[1721874427332,5.7794,173.03,172.97,5.7811]
[1721874427555,0.55734011,173.02,172.95,5.7818]
[1721874427720,0.55734011,173.06,172.92,8.50736303]
[1721874427903,5.7791,173.04,172.98,5.7809]
[1721874428109,0.55734011,173.06,172.92,7.351121]
[1721874428430,0.55734011,173.03,172.96,5.7813]
[1721874428804,20.55734011,173.07,172.93,1.15617516]
[1721874429520,29.28,173.08,173.01,5.7799]
[1721874430035,5.778,173.07,172.99,5.7804]
[1721874430229,5.7785,173.06,172.99,5.7804]
[1721874430932,29.28,173.08,173.01,5.7799]
[1721874431126,29.28,173.08,172.93,21.15617516]
[1721874431127,29.28,173.08,172.99,5.7804]
[1721874431337,0.55734011,173.07,172.93,1.15605593]
[1721874431639,5.7782,173.07,173.0,5.7802]
[1721874432005,29.28,173.08,173.01,5.7799]
[1721874433337,35.0577,173.08,172.99,5.7804]
[1721874433531,29.28,173.08,172.99,5.7804]
[1721874433736,5.7781,173.07,172.99,5.7804]
[1721874433951,20.0,173.06,172.93,5.7826]
[1721874434242,5.7808,172.99,172.92,7.351121]
[1721874434414,5.7808,172.99,172.93,5.7825]
[1721874434811,5.7802,173.01,172.94,1.15633538]
[1721874435033,0.55734011,173.04,172.92,0.782821]
[1721874435246,5.7807,172.99,172.92,0.782821]
[1721874435739,5.7807,172.99,172.93,5.7826]
[1721874435911,5.7797,173.02,172.95,5.7818]
[1721874436317,5.7801,173.01,172.95,5.7818]
[1721874436546,5.7801,173.01,172.93,5.7824]
[1721874436941,5.7801,173.01,172.94,50.7823]
[1721874437413,5.7804,173.0,172.94,5.7823]
[1721874437930,0.55734011,173.05,172.94,5.7823]
[1721874438124,0.55734011,173.04,172.92,0.782821]
[1721874438332,0.55734011,173.04,172.96,5.7815]
[1721874438528,5.78,173.01,172.95,5.7819]
[1721874439227,20.55734011,173.06,172.95,5.7819]
[1721874439441,0.55734011,173.04,172.95,5.7819]
[1721874439824,5.7797,173.02,172.96,5.7816]
[1721874440026,5.78,173.01,172.94,5.7821]
[1721874440443,5.7807,172.99,172.93,5.7826]
[1721874441227,5.7803,173.0,172.93,5.7826]
[1721874441445,0.55734011,173.03,172.94,45.0]
[1721874441627,5.7802,173.01,172.92,0.782821]
[1721874442035,5.7803,173.0,172.94,5.7822]
[1721874442351,26.05,173.02,172.95,50.7818]
[1721874442525,5.7788,173.05,172.97,5.781]
[1721874442852,0.55734011,173.04,172.97,5.781]
[1721874443151,5.7798,173.02,172.92,0.782821]
[1721874443339,6.33714011,173.02,172.92,0.782821]
[1721874443537,5.78,173.01,172.94,5.7821]
[1721874443741,0.55734011,173.02,172.96,5.7816]
[1721874444141,26.05,173.03,172.97,45.0]
[1721874444467,32.38674011,173.03,172.97,5.7811]
[1721874444629,5.7797,173.02,172.95,50.7817]
[1721874445143,26.60734011,173.03,172.92,0.782821]
[1721874445345,5.7807,172.99,172.93,5.7826]
[1721874445558,5.7804,173.0,172.94,5.7823]
[1721874445766,26.05,173.03,172.92,0.782821]
[1721874446060,26.05,173.05,172.93,1.15612253]
[1721874446638,6.33634011,173.04,172.97,5.7811]
[1721874446832,0.55734011,173.04,172.97,5.7811]
[1721874447031,0.55734011,173.04,172.92,0.782821]
[1721874447032,5.7796,173.02,172.92,0.782821]
[1721874447427,0.55734011,173.04,172.92,0.782821]
[1721874447428,16.4995,173.01,172.92,0.782821]
[1721874447634,5.7826,172.93,172.92,0.782821]
[1721874448752,26.05,172.94,172.92,0.782821]
[1721874448928,5.7821,172.95,172.92,0.782821]
[1721874449126,5.7815,172.97,172.92,0.782821]
[1721874449325,0.55734011,172.96,172.92,0.782821]
[1721874449752,16.4995,173.01,172.95,5.7819]
[1721874449961,26.05,173.01,172.95,5.7819]
[1721874450126,26.05,173.01,172.96,5.7816]
[1721874450744,26.60734011,173.01,172.96,5.7816]
[1721874450959,5.7805,173.0,172.93,5.7824]
[1721874451251,26.05,173.01,172.95,5.7819]
[1721874452027,26.05,172.98,172.92,0.782821]
[1721874452344,26.05,172.98,172.92,6.565821]
[1721874452345,5.781,172.98,172.92,6.565821]
[1721874452731,6.33794011,173.0,172.93,5.7826]
[1721874452932,5.7804,173.0,172.94,5.7823]
[1721874453155,29.87734011,173.01,172.95,5.7818]
[1721874453448,5.78,173.01,172.92,0.782821]
[1721874453659,5.7796,173.02,172.92,0.782821]
[1721874454031,5.78,173.01,172.95,5.782]
[1721874454447,5.7796,173.02,172.96,5.7816]
[1721874454854,5.7799,173.02,172.95,5.7818]
[1721874455037,5.78,173.01,172.95,5.7818]
[1721874455755,35.34171456,173.07,172.96,46.15610543]
[1721874455950,35.0983,173.07,172.96,46.15610543]
[1721874456340,35.0983,173.07,173.02,5.7796]
[1721874456546,6.1025,173.3,173.04,20.0]
[1721874456738,29.32,173.26,173.11,1.004]
[1721874457347,0.55734011,173.29,173.21,5.773]
[1721874457637,5.7715,173.27,173.12,1.15473172]
[1721874457946,6.32824011,173.29,173.13,20.0]
[1721874458259,5.771,173.28,173.21,5.7732]
[1721874458830,0.55734011,173.29,173.21,5.7732]
[1721874458831,0.55734011,173.27,173.21,5.7732]
[1721874459031,0.55734011,173.27,173.22,5.7728]
[1721874459257,0.55734011,173.26,173.2,5.7733]
[1721874459835,0.55734011,173.26,173.14,45.0]
[1721874460088,47.21734011,173.26,173.11,1.004]
[1721874460250,20.0,173.25,173.16,5.7749]
[1721874460566,20.0,173.25,173.12,5.7761]
[1721874460567,5.7738,173.2,173.12,5.7761]
[1721874460858,0.55734011,173.19,173.13,5.7758]
[1721874461063,0.55734011,173.19,173.11,1.004]
[1721874461234,0.55734011,173.19,173.11,6.7806]
[1721874461235,6.33154011,173.19,173.11,6.7806]
[1721874461435,6.33154011,173.19,173.12,5.7762]
[1721874461661,5.7746,173.18,173.11,1.004]
[1721874461864,5.7753,173.15,173.11,1.004]
[1721874462036,6.33314011,173.14,173.03,21.9284]
[1721874462235,5.7763,173.13,173.06,5.778]
[1721874462449,5.7764,173.12,173.04,5.7787]
[1721874462654,5.7768,173.11,173.04,5.7787]
[1721874462856,0.55734011,173.1,173.05,5.7785]
[1721874463053,0.55734011,173.1,172.97,6.2655]
[1721874463054,5.7774,173.09,172.97,6.2655]
[1721874463249,0.55734011,173.08,173.03,5.7793]
[1721874463564,17.34,173.13,173.0,5.7802]
[1721874463565,0.55734011,173.07,173.0,5.7802]
[1721874463739,0.55734011,173.07,173.01,5.7798]
[1721874463946,0.55734011,173.07,172.93,1.15607068]
[1721874464143,0.55734011,173.07,173.02,5.7795]
[1721874464342,6.33534011,173.07,173.0,5.7801]
[1721874464646,14.4407,173.13,172.9,9.46566259]
[1721874464647,6.33584011,173.06,172.99,5.7806]
[1721874464840,0.55734011,173.05,172.99,5.7804]
[1721874465268,5.7777,173.08,172.93,6.93617577]
[1721874465565,5.7773,173.09,173.03,5.7793]
[1721874465867,0.55734011,173.13,172.95,1.15586149]
[1721874466052,0.55734011,173.13,172.95,46.15570004]
[1721874466360,0.55734011,173.13,172.93,5.7801]
[1721874466565,0.55734011,173.13,173.0,5.7803]
[1721874466566,20.55734011,173.13,173.0,5.7803]
[1721874466867,17.34,173.12,173.0,5.7803]
[1721874467173,37.89734011,173.11,172.93,6.93614373]
[1721874467341,5.7784,173.06,172.93,6.93614373]
[1721874467545,0.55734011,173.05,172.93,5.7801]
[1721874467768,0.55734011,173.05,172.94,5.7821]
[1721874467769,5.7801,173.01,172.94,5.7821]
[1721874467963,0.55734011,173.0,172.94,5.7821]
[1721874468161,5.78,173.01,172.95,5.7818]
[1721874468467,5.7796,173.03,172.95,5.7818]
[1721874468655,0.55734011,173.05,172.95,5.7818]
[1721874468863,5.7803,173.0,172.94,5.7823]
[1721874469248,6.33804011,172.99,172.92,0.782821]
[1721874469554,5.7814,172.97,172.92,0.782821]
[1721874469758,0.55734011,172.96,172.92,0.782821]
[1721874470070,0.55734011,172.96,172.92,6.565821]
[1721874470368,0.55734011,172.96,172.92,0.782821]
[1721874470742,5.7825,172.94,172.92,0.782821]
[1721874470946,0.55734011,172.93,172.92,0.782821]
[1721874471676,0.55734011,172.98,172.92,0.782821]
[1721874471875,5.782,172.95,172.92,0.782821]
[1721874472082,0.55734011,172.98,172.92,0.782821]
[1721874472386,5.7824,172.94,172.92,0.782821]
[1721874472680,0.55734011,172.93,172.92,0.782821]
[1721874473580,6.33914011,172.96,172.92,0.782821]
[1721874473761,5.7821,172.95,172.92,0.782821]
[1721874473957,6.33944011,172.95,172.92,0.782821]
[1721874474154,5.7826,172.94,172.92,0.782821]
[1721874474365,0.55734011,172.93,172.92,0.782821]
[1721874474577,5.7826,172.94,172.83,0.1506891]
[1721874474578,5.7845,172.88,172.83,0.1506891]
[1721874474883,5.7881,172.77,172.75,3.101265]
[1721874475179,29.32,172.81,172.75,0.782821]
[1721874475356,5.7877,172.78,172.75,0.782821]
[1721874475550,35.9398,172.79,172.75,0.782821]
[1721874475755,5.7883,172.76,172.75,0.782821]
[1721874475956,55.68717121,172.76,172.57,0.782821]
[1721874476159,29.32,172.68,172.57,0.782821]
[1721874476362,29.32,172.66,172.57,0.782821]
[1721874476595,0.57887121,172.76,172.57,0.782821]
[1721874476758,23.1308,172.69,172.57,0.782821]
[1721874476964,52.4508,172.69,172.57,0.782821]
[1721874477181,17.34,172.71,172.57,0.782821]
[1721874477492,20.57887121,172.76,172.57,0.782821]
[1721874477675,5.7898,172.72,172.57,6.577221]
[1721874477868,45.0,172.75,172.57,6.577321]
[1721874477869,35.1095,172.73,172.57,6.577321]
[1721874478065,29.32,172.68,172.57,0.782821]
[1721874478285,0.57887121,172.76,172.57,0.782821]
[1721874478286,6.02733535,172.69,172.57,0.782821]
[1721874478591,0.57887121,172.76,172.57,0.782821]
[1721874479268,5.7887,172.75,172.57,0.782821]
[1721874479467,0.57887121,172.76,172.57,0.782821]
[1721874479468,20.0,172.74,172.57,0.782821]
[1721874480272,20.0,172.74,172.61,5.7932]
[1721874480591,20.0,172.74,172.62,45.0]
[1721874480793,20.0,172.74,172.57,0.782821]
[1721874481291,5.7925,172.64,172.57,0.782821]
[1721874481601,17.34,172.73,172.59,5.7939]
[1721874481602,5.7895,172.73,172.59,5.7939]
[1721874481769,5.7895,172.73,172.57,0.782821]
[1721874481770,20.0,172.72,172.57,0.782821]
[1721874481977,265.52887063,172.75,172.63,5.7926]
[1721874482183,265.52887063,172.75,172.65,5.7918]
[1721874482393,259.5,172.75,172.65,5.7918]
[1721874482863,6.03263834,172.74,172.66,45.0]
[1721874483066,0.57887121,172.76,172.66,45.0]
[1721874483287,0.57887121,172.76,172.57,0.782821]
[1721874483593,0.57887121,172.76,172.59,20.0]
[1721874483793,0.57887121,172.76,172.63,5.7925]
[1721874484003,0.57887121,172.76,172.59,20.0]
[1721874484200,0.57887121,172.76,172.66,5.7914]
[1721874484359,0.57887121,172.76,172.68,5.791]
[1721874484563,0.57887121,172.76,172.69,45.0]
[1721874485001,0.57887121,172.76,172.69,50.7903]
[1721874485359,0.57887121,172.76,172.69,45.0]
[1721874485565,0.57887121,172.76,172.74,5.7887]
[1721874485794,0.57887121,172.76,172.75,45.0]
[1721874485997,0.57887121,172.76,172.69,45.0]
[1721874486168,0.57887121,172.76,172.66,5.7916]
[1721874486568,0.57887121,172.76,172.59,20.0]
[1721874486569,0.57887121,172.76,172.64,5.7923]
[1721874486766,0.57887121,172.76,172.62,5.793]
[1721874487069,5.7917,172.67,172.57,0.782821]
[1721874487274,15.05007121,172.76,172.57,0.782821]
[1721874487473,5.7914,172.67,172.57,0.782821]
[1721874488082,5.7899,172.72,172.6,5.7936]
[1721874488287,5.7899,172.72,172.57,0.782821]
[1721874488288,660.1948,172.75,172.57,0.782821]
[1721874488497,385.0,172.75,172.65,5.7917]
[1721874488797,6.36727121,172.76,172.65,5.7917]
[1721874488969,6.36727121,172.76,172.57,0.782821]
[1721874488970,0.57887121,172.76,172.57,0.782821]
[1721874489170,17.34,172.74,172.57,0.782821]
[1721874489422,37.34,172.73,172.57,0.782821]
[1721874489577,5.7927,172.64,172.57,0.782821]
[1721874489771,5.7911,172.68,172.57,0.782821]
[1721874489969,20.0,172.67,172.58,5.7941]
[1721874490275,385.0,172.74,172.63,5.7927]
[1721874490493,35.96,172.78,172.44,2.30912003]
[1721874490494,6.3157,172.63,172.44,2.30912003]
[1721874490677,5.7974,172.49,172.4,0.782821]
[1721874490880,35.96,172.58,172.4,0.782821]
[1721874491087,5.7973,172.5,172.4,0.782821]
[1721874491484,5.7973,172.5,172.48,0.1506891]
[1721874491685,5.7973,172.5,172.4,0.782821]
[1721874491686,5.8001,172.41,172.4,0.782821]
[1721874491885,5.7994,172.43,172.4,0.782821]
[1721874492078,51.2141,172.53,172.4,0.782821]
[1721874492274,37.34,172.51,172.4,0.782821]
[1721874492488,15.2541,172.53,172.4,0.782821]
[1721874492782,35.96,172.42,172.4,0.782821]
[1721874492981,35.96,172.42,172.23,0.782821]
[1721874492982,1.60745806,172.41,172.23,0.782821]
[1721874493173,5.8,172.42,172.23,0.782821]
[1721874493496,35.96,172.57,172.31,20.0]
[1721874493796,35.96,172.57,172.3,6.3183]
[1721874493797,35.96,172.52,172.3,6.3183]
[1721874493998,5.7977,172.49,172.3,6.3183]
[1721874494201,5.7998,172.42,172.3,6.3183]
[1721874494401,55.96,172.53,172.3,26.7058018]
[1721874494402,5.7977,172.49,172.3,26.7058018]
[1721874494591,40.7169,172.59,172.3,26.7058018]
[1721874494592,6.2311,172.59,172.33,20.0]
[1721874494779,35.96,172.58,172.31,20.0]
[1721874495105,35.96,172.58,172.3,6.7058018]
[1721874495106,35.96,172.58,172.36,20.0]
[1721874495485,35.96,172.53,172.3,6.7058018]
[1721874495872,0.57887121,172.31,172.3,6.7058018]
[1721874496074,5.7969,172.51,172.3,26.7058018]
[1721874496286,35.96,172.54,172.32,20.0]
[1721874496499,35.96,172.54,172.3,6.7058018]
[1721874496500,5.7983,172.47,172.3,6.7058018]
[1721874496796,41.7558,172.54,172.32,20.0]
[1721874496999,35.96,172.54,172.32,20.0]
[1721874497206,35.96,172.54,172.3,6.7058018]
[1721874497207,12.25332318,172.59,172.35,20.0]
[1721874497504,17.34,172.56,172.32,55.96]
[1721874497671,12.25332318,172.59,172.36,20.0]
[1721874497870,12.25332318,172.59,172.33,55.96]
[1721874498177,18.04762318,172.59,172.34,45.0]
[1721874498375,17.34,172.57,172.31,6.70319174]
[1721874498716,17.34,172.57,172.32,20.0]
[1721874498887,17.34,172.57,172.31,35.96]
[1721874498888,6.02222318,172.59,172.31,62.66319174]
[1721874499203,5.7972,172.5,172.31,62.66319174]
[1721874499372,17.34,172.56,172.3,6.7058018]
[1721874499576,17.34,172.5,172.3,6.7058018]
[1721874499776,50.4519,172.51,172.3,6.7058018]
[1721874500001,1.60745806,172.5,172.3,6.7058018]
[1721874500380,5.7975,172.49,172.3,6.7058018]
[1721874500576,35.96,172.39,172.31,6.70319174]
[1721874500799,35.96,172.44,172.3,0.3875018]
[1721874500800,35.96,172.34,172.3,0.3875018]
[1721874501303,20.0,172.33,172.2,2.0]
[1721874501510,50.4579,172.44,172.2,1.5]
[1721874501678,35.96,172.33,172.2,1.5]
[1721874502078,35.96,172.33,172.2,21.5]
[1721874502295,35.96,172.33,172.2,1.5]
[1721874503098,35.96,172.33,172.13,0.9565087]
[1721874503407,35.96,172.35,172.14,20.0]
[1721874503709,5.8026,172.34,172.14,20.0]
[1721874503898,35.96,172.35,172.14,20.0]
[1721874504196,35.96,172.35,172.15,20.0]
[1721874504399,35.96,172.35,172.16,20.0]
[1721874504698,35.96,172.35,172.17,20.0]
[1721874505120,5.8025,172.34,172.17,20.0]
[1721874505280,35.96,172.35,172.13,0.9565087]
[1721874505484,20.0,172.34,172.13,0.9565087]
[1721874505684,20.0,172.34,172.14,20.0]
[1721874505991,35.96,172.35,172.15,20.0]
[1721874506178,35.96,172.35,172.13,0.9565087]
[1721874506385,35.96,172.35,172.14,30.0]
[1721874506585,5.8026,172.34,172.14,30.0]
[1721874506797,5.8026,172.34,172.13,0.9565087]
[1721874506798,35.96,172.29,172.13,0.9565087]
[1721874507993,35.96,172.35,172.13,0.9565087]
[1721874507994,35.96,172.24,172.13,0.9565087]
[1721874509284,20.0,172.23,172.13,0.9565087]
[1721874509485,5.8069,172.21,172.13,0.9565087]
[1721874509716,5.8074,172.2,172.13,0.9565087]
[1721874510011,20.0,172.23,172.13,0.9565087]
[1721874510203,35.96,172.18,172.13,0.9565087]
[1721874511614,6.641,172.22,172.13,0.9565087]
[1721874511791,35.96,172.17,172.13,0.9565087]
[1721874512715,5.8091,172.15,172.13,0.9565087]
[1721874513523,35.96,172.17,172.13,0.9565087]
[1721874513685,20.0,172.16,172.13,0.9565087]
[1721874513884,35.96,172.17,172.13,0.9565087]
[1721874514999,35.96,172.26,172.13,0.9565087]
[1721874515212,5.8064,172.23,172.13,0.9565087]
[1721874515524,5.8056,172.25,172.13,0.9565087]
[1721874515818,35.96,172.26,172.13,0.9565087]
[1721874515998,0.58095626,172.14,172.13,0.9565087]
[1721874518695,6.39015626,172.14,172.13,0.9565087]
[1721874519019,0.58095626,172.14,172.13,0.9565087]
[1721874522821,23.73015626,172.14,172.13,0.9565087]
[1721874523118,0.58095626,172.14,172.13,0.9565087]
[1721874523419,5.8112,172.08,172.0,12.01]
[1721874523608,17.34,172.08,172.0,24.9083931]
[1721874523792,6.2447,172.13,172.0,24.9083931]
[1721874524007,35.96,172.06,172.0,24.9083931]
[1721874524529,0.58095626,172.14,172.0,24.9083931]
[1721874524833,5.8105,172.11,172.0,24.9083931]
[1721874525003,5.8102,172.11,172.0,24.9083931]
[1721874525206,17.34,172.06,172.0,24.9083931]
[1721874525414,23.1521,172.06,172.0,24.9083931]
[1721874525610,23.1526,172.04,172.0,24.9083931]
[1721874525808,0.58095626,172.14,172.0,24.9083931]
[1721874526017,35.96,172.08,172.0,24.9083931]
[1721874526226,20.0,172.07,172.0,24.9083931]
[1721874526439,17.34,172.06,172.0,24.9083931]
[1721874526607,37.34,172.05,172.0,24.9083931]
[1721874526812,20.0,172.07,172.0,24.9083931]
[1721874526813,17.34,172.04,172.0,24.9083931]
[1721874527027,37.34,172.03,172.0,24.9083931]
[1721874527232,53.3,172.03,172.0,24.9083931]
[1721874527554,53.3,172.03,171.95,0.8058196]
[1721874527555,17.34,171.98,171.95,0.8058196]
[1721874527849,5.8137,172.01,171.95,0.8058196]
[1721874528015,20.0,172.0,171.95,0.8058196]
[1721874528204,34.71977364,172.1,171.95,0.8058196]
[1721874528205,17.34,172.07,171.95,0.8058196]
[1721874528411,5.8126,172.04,171.95,0.8058196]
[1721874528707,23.36296876,172.07,171.95,0.8058196]
[1721874528908,6.02296876,172.07,171.95,0.8058196]
[1721874529308,6.02296876,172.07,171.95,20.8058196]
[1721874529516,0.58095626,172.14,171.97,20.0]
[1721874529819,0.58095626,172.14,172.01,16.0561]
[1721874530017,0.58095626,172.14,172.02,45.0]
[1721874530416,0.58095626,172.14,172.05,6.2771]
[1721874530611,0.58095626,172.14,171.95,0.8058196]
[1721874530612,5.8132,172.02,171.95,0.8058196]
[1721874530825,35.96,172.06,171.95,0.8058196]
[1721874531439,16.6607,172.12,171.95,0.8058196]
[1721874531440,35.96,172.12,171.95,0.8058196]
[1721874531745,0.58095626,172.14,171.96,6.2771]
[1721874532438,17.34,172.08,171.97,45.0]
[1721874533140,6.60645015,172.14,171.97,45.0]
[1721874533342,6.60645015,172.14,171.97,42.5]
[1721874533542,0.58095626,172.14,171.97,42.5]
[1721874534445,5.8097,172.13,171.97,42.5]
[1721874534641,0.58095626,172.14,171.97,42.5]
[1721874535346,0.58095626,172.14,171.97,62.5]
[1721874535648,0.58095626,172.14,171.97,42.5]
[1721874535820,0.58095626,171.98,171.96,6.2771]
[1721874536144,5.811,172.09,171.96,6.2771]
[1721874536318,17.34,172.15,171.96,6.2771]
[1721874536319,5.8114,172.08,171.96,6.2771]
[1721874536639,5.8106,172.1,171.96,6.2771]
[1721874536836,17.34,172.12,171.96,6.2771]
[1721874537341,5.8108,172.1,171.96,6.2771]
[1721874537844,17.34,172.11,171.96,6.2771]
[1721874538022,23.1504,172.11,171.96,3.7771]
[1721874538419,17.34,172.09,171.95,0.8058196]
[1721874538629,23.1511,172.09,171.95,0.8058196]
[1721874538925,5.8113,172.08,171.95,0.8058196]
[1721874539242,5.8094,172.14,171.95,0.8058196]
[1721874539425,5.8086,172.16,171.95,0.8058196]
[1721874539635,41.98444266,172.17,171.95,0.8058196]
[1721874539835,35.96,172.17,171.95,45.8058196]
[1721874540131,23.1487,172.16,171.95,45.8058196]
[1721874540341,35.96,172.17,171.97,20.0]
[1721874540517,35.96,172.17,171.98,45.0]
[1721874541144,17.34,172.16,171.99,6.1291]
[1721874541339,17.34,172.16,172.0,45.0]
[1721874541534,5.8097,172.13,172.0,45.0]
[1721874541747,35.96,172.17,172.0,45.0]
[1721874542552,5.8077,172.19,172.0,65.0]
[1721874542723,35.96,172.26,172.03,20.0]
[1721874542922,6.02521536,172.24,172.04,45.0]
[1721874543133,5.8063,172.23,172.04,45.0]
[1721874545123,53.3,172.21,172.01,15.3032]
[1721874545657,5.8097,172.13,172.01,15.3032]
[1721874546021,5.8104,172.11,172.01,15.3032]
[1721874546219,17.34,172.13,172.01,15.3032]
[1721874546921,35.96,172.16,172.01,15.3032]
[1721874547237,35.96,172.26,172.01,15.3032]
[1721874547444,35.96,172.26,172.02,20.0]
[1721874547752,35.96,172.26,172.01,15.3032]
[1721874547753,35.96,172.26,172.04,20.0]